fUSD/lending_fUSD_20240116
["ID","MTS","AMOUNT","RATE_DAILY","PERIOD"]
[311801320,1705413512206,159.47,0.00021915,2]
[311801321,1705413600537,20000.0,0.00022,2]
[311801322,1705413631870,187.07,0.00019983,2]
[311801323,1705413803192,381.93,0.00021898,2]
[311801324,1705413812913,672.06,0.00021888,2]
[311801325,1705414056876,186.0,0.00019975,2]
[311801326,1705414084726,205.0,0.00021137,2]
[311801327,1705414217395,158.58624909,0.00021116,2]
[311801334,1705414232182,-889.30813036,0.00022076,2]
[311801336,1705414232193,-160.51,0.00022111,2]
[311801338,1705414232202,-763.59853721,0.00022136,2]
[311801340,1705414232212,-186.0,0.00022239,2]
[311801342,1705414232221,-150.0,0.00022457,2]
[311801344,1705414232231,-10475.58333253,0.00022458,2]
[311801346,1705414232243,-1772.36911763,0.00022458,2]
[311801350,1705414232268,-715.06883155,0.00022458,2]
[311801352,1705414232277,-583.614,0.00022458,2]
[311801353,1705414232286,-1051.60600785,0.00022699,2]
[311801357,1705414232310,-383.14260203,0.00022699,2]
[311801371,1705414239394,-6264.51926449,0.00022699,2]
[311801372,1705414239404,-1000.0,0.000227,2]
[311801373,1705414239413,-1311.58829177,0.00022743,2]
[311801374,1705414239423,-3989.04484134,0.00022743,2]
[311801375,1705414239438,-2468.89400517,0.00022743,2]
[311801376,1705414240642,-877.03274037,0.00022743,2]
[311801377,1705414240652,-324.20231816,0.00022743,2]
[311801378,1705414240665,-2118.77458819,0.00022743,2]
[311801379,1705414240674,-10537.74836172,0.00022743,2]
[311801380,1705414240750,-521.55756997,0.00022743,2]
[311801390,1705414243247,-526.58658513,0.00022743,2]
[311801391,1705414243317,-333.67721014,0.00022743,2]
[311801392,1705414243327,-150.0,0.00022763,2]
[311801393,1705414243336,-466.46869869,0.00022763,2]
[311801394,1705414243365,-33.52130131,0.00022763,2]
[311801395,1705414243375,-540.34,0.00022768,2]
[311801396,1705414243385,-150.0,0.00022772,2]
[311801397,1705414243394,-150.0,0.00022777,2]
[311801398,1705414243404,-150.0,0.00022788,2]
[311801399,1705414243413,-150.0,0.00022797,2]
[311801400,1705414243422,-201.78177597,0.000228,2]
[311801401,1705414243431,-500.0,0.00022816,2]
[311801402,1705414243441,-500.0,0.00022816,2]
[311801403,1705414243450,-200.0,0.00022816,2]
[311801404,1705414243459,-800.0,0.00022816,2]
[311801405,1705414243469,-6.0365656,0.00022824,2]
[311801408,1705414243519,-143.9634344,0.00022824,2]
[311801409,1705414243528,-150.0,0.00022846,2]
[311801410,1705414243537,-150.0,0.00022846,2]
[311801411,1705414243547,-4159.12293457,0.0002285,2]
[311801412,1705414243556,-150.0,0.00022864,2]
[311801413,1705414243566,-381.93,0.00022876,2]
[311801414,1705414243576,-388.4,0.00022889,2]
[311801415,1705414243586,-1395.523,0.00022889,2]
[311801416,1705414243595,-150.0,0.0002289,2]
[311801417,1705414243605,-250.0,0.000229,2]
[311801418,1705414243614,-187.0818271,0.000229,2]
[311801419,1705414243625,-408.4,0.000229,2]
[311801420,1705414243635,-1000.0,0.000229,2]
[311801421,1705414243646,-180.83,0.000229,2]
[311801422,1705414243656,-150.0,0.00022905,2]
[311801423,1705414243667,-150.0,0.00022917,2]
[311801424,1705414243678,-252.99454732,0.00022963,2]
[311801425,1705414243689,-11074.21319736,0.0002298,2]
[311801426,1705414243703,-463.51367634,0.0002298,2]
[311801456,1705414246630,-495.08726849,0.0002298,2]
[311801458,1705414246641,-3093.35396088,0.0002298,2]
[311801461,1705414246652,-150.0,0.00022987,2]
[311801465,1705414246661,-150.0,0.00022989,2]
[311801468,1705414246670,-2361.27012865,0.00022996,2]
[311801473,1705414246696,-1071.89007141,0.00022996,2]
[311801477,1705414246708,-11255.99856032,0.00022996,2]
[311801480,1705414246735,-716.28058986,0.00022996,2]
[311801483,1705414246747,-6423.4,0.00022996,2]
[311801485,1705414246762,-1372.14540597,0.00022996,2]
[311801493,1705414363664,3054.0,0.00022,2]
[311801494,1705414500426,166.55,0.00021999,2]
[311801548,1705414539832,183.14,0.00020025,2]
[311801579,1705414642220,598.24346834,0.00022,10]
[311801580,1705414663106,166.79,0.00021921,2]
[311801584,1705414811838,537.65,0.0002193,2]
[311801585,1705414812071,366.89,0.00021917,2]
[311801586,1705414955002,158.26,0.00021932,2]
[311801587,1705414993130,181.85,0.00020007,2]
[311801637,1705415133956,205.0,0.00021375,2]
[311801638,1705415150094,-524.62106045,0.00022016,2]
[311801639,1705415150119,-462.35,0.00022017,2]
[311801640,1705415150149,-160.21,0.00022163,2]
[311801641,1705415150177,-181.85,0.00022271,2]
[311801642,1705415150204,-166.55,0.00022365,2]
[311801643,1705415150230,-1000.0,0.000227,2]
[311801644,1705415150259,-166.55,0.00022732,2]
[311801645,1705415150288,-150.0,0.00022742,2]
[311801646,1705415150318,-12215.94715258,0.00022743,2]
[311801654,1705415243098,-1000.0,0.00022742,2]
[311801655,1705415243122,-4469.77484331,0.00022743,2]
[311801656,1705415260578,342.43,0.00021959,2]
[311801657,1705415284550,185414.26738337,0.00022,2]
[311801661,1705415346867,151.0,0.00019143,2]
[311801672,1705415429693,171.53,0.00020012,2]
[311801684,1705415431522,-151.0,0.00022015,2]
[311801685,1705415431533,-151.0,0.00022137,2]
[311801686,1705415431542,-171.53,0.00022276,2]
[311801687,1705415431552,-8596.0,0.00022444,2]
[311801688,1705415431561,-5271.71416133,0.00022742,2]
[311801689,1705415431571,-3098.76588199,0.00022743,2]
[311801690,1705415431581,-47922.8833768,0.00022743,2]
[311801691,1705415431676,-7116.1377386,0.00022743,2]
[311801692,1705415431686,-5215.12106923,0.00022743,2]
[311801693,1705415431696,-150.0,0.00022763,2]
[311801694,1705415431706,-155.46917084,0.00022766,2]
[311801695,1705415431715,-3491.0094,0.00022798,2]
[311801696,1705415431725,-8350.2915,0.00022799,2]
[311801697,1705415431736,-177.37750002,0.00022799,2]
[311801698,1705415431745,-164.0549509,0.00022799,2]
[311801699,1705415431754,-200.0,0.00022816,2]
[311801700,1705415431763,-800.0,0.00022816,2]
[311801701,1705415431773,-177.37750001,0.00022833,2]
[311801702,1705415431782,-5737.78995102,0.00022833,2]
[311801703,1705415431791,-177.37750001,0.00022866,2]
[311801704,1705415431800,-155.60398749,0.00022896,3]
[311801705,1705415431809,-1260.85191282,0.00022896,2]
[311801706,1705415431818,-278.87214514,0.00022896,2]
[311801707,1705415431827,-277.533,0.00022897,2]
[311801708,1705415431836,-76232.35570636,0.00022898,2]
[311801709,1705415431846,-58067.04961664,0.00022898,2]
[311801763,1705415437511,-164.05495088,0.00022833,2]
[311801764,1705415437520,-1550.08504912,0.00022898,2]
[311801765,1705415437550,-635.78396717,0.00022898,2]
[311801766,1705415437771,-19726.47756954,0.00022898,2]
[311801780,1705415441189,-164.05495088,0.00022866,2]
[311801781,1705415441199,-21162.19671707,0.00022898,2]
[311801782,1705415441219,-1019.6030098,0.00022898,2]
[311801797,1705415443097,-1040.38146712,0.00022898,2]
[311801798,1705415443108,-6497.82765898,0.00022899,2]
[311801799,1705415443125,-5011.94164491,0.00022899,2]
[311801800,1705415443145,-328.84755376,0.00022899,2]
[311801818,1705415445425,-311.98815195,0.00022896,2]
[311801819,1705415445436,-11850.38277308,0.00022899,2]
[311801820,1705415445448,-1337.69939366,0.00022899,2]
[311801821,1705415445462,-3782.15027361,0.00022899,2]
[311801822,1705415445474,-2545.40324011,0.00022899,2]
[311801823,1705415445490,-3700.77848853,0.00022899,2]
[311801824,1705415445501,-14681.73357559,0.00022899,2]
[311801825,1705415445544,-587.59275401,0.00022899,2]
[311801826,1705415445603,-16261.79199812,0.00022899,2]
[311801827,1705415445663,-228734.14841785,0.00022899,2]
[311801828,1705415445675,-482.87398691,0.00022899,2]
[311801922,1705415608698,1000.0,0.00021946,2]
[311801925,1705415759420,319.6,0.00021933,2]
[311801926,1705415930318,2985.23,0.00021909,2]
[311801927,1705416014186,170.1,0.0002192,2]
[311801928,1705416041542,200.0,0.00021904,2]
[311801929,1705416042904,161.93,0.00019986,2]
[311801930,1705416213982,205.0,0.00021887,2]
[311801931,1705416226890,298.29,0.00021871,2]
[311801932,1705416334055,4000.0,0.00022,2]
[311801948,1705416459080,166.55,0.00021927,2]
[311801949,1705416481970,840.0,0.00021849,2]
[311801950,1705416570056,162.93,0.00019902,2]
[311801996,1705416634386,-524.62106045,0.00022013,2]
[311801998,1705416634396,-160.21,0.00022014,2]
[311802000,1705416634405,-160.51,0.00022114,2]
[311802002,1705416634415,-536.54907333,0.00022136,2]
[311802004,1705416634425,-162.93,0.00022166,2]
[311802006,1705416634434,-364.68928061,0.00022499,2]
[311802008,1705416634444,-1000.0,0.000225,2]
[311802010,1705416634454,-150.0,0.0002263,2]
[311802012,1705416634463,-170.1,0.00022651,2]
[311802014,1705416634474,-450.0,0.0002266,2]
[311802016,1705416634483,-150.0,0.00022665,2]
[311802018,1705416634493,-2378.97313921,0.00022666,2]
[311802019,1705416634505,-2304.88955332,0.00022666,2]
[311802020,1705416634531,-1266.56,0.00022666,2]
[311802021,1705416634563,-965.20384138,0.00022666,2]
[311802022,1705416634616,-795.03144677,0.00022666,2]
[311802023,1705416634628,-1614.05674277,0.00022666,2]
[311802024,1705416634637,-439.21,0.00022666,2]
[311802025,1705416634648,-71.65461723,0.00022667,2]
[311802032,1705416637555,-360.27768199,0.00022667,2]
[311802033,1705416637633,-428.0224742,0.00022667,2]
[311802034,1705416637643,-87.10919682,0.00022667,2]
[311802035,1705416637736,-412.88080318,0.00022667,2]
[311802036,1705416637746,-730.5,0.00022667,2]
[311802037,1705416637755,-4380.0,0.0002267,2]
[311802038,1705416637765,-2695.0,0.000227,2]
[311802039,1705416637775,-987.52526827,0.00022743,2]
[311802040,1705416637784,-1656.91829304,0.00022743,2]
[311802041,1705416637793,-7368.75674757,0.00022743,2]
[311802042,1705416637805,-2039.0201,0.00022795,2]
[311802043,1705416637815,-160.6445644,0.00022797,2]
[311802044,1705416637825,-545.80042162,0.00022798,2]
[311802045,1705416637836,-375.16704884,0.00022798,2]
[311802046,1705416637849,-244.76928863,0.00022798,2]
[311802047,1705416637859,-164.0,0.00022798,2]
[311802048,1705416637869,-23076.0,0.000228,2]
[311802049,1705416637878,-1333.86923348,0.00022816,3]
[311802050,1705416637888,-500.0,0.00022816,2]
[311802051,1705416637897,-800.0,0.00022816,2]
[311802052,1705416637907,-160.64456439,0.00022849,2]
[311802053,1705416637916,-545.8004216,0.00022849,2]
[311802054,1705416637926,-375.16704884,0.00022849,2]
[311802055,1705416637936,-298.29,0.00022849,2]
[311802056,1705416637945,-1467.97712638,0.00022886,2]
[311802057,1705416637954,-188.21268822,0.00022895,2]
[311802058,1705416637963,-157.03308775,0.00022895,2]
[311802059,1705416637973,-116423.47961333,0.00022895,2]
[311802060,1705416637982,-572.60599627,0.00022895,2]
[311802061,1705416637991,-1612.49580755,0.00022896,2]
[311802062,1705416638000,-1612.49580747,0.00022896,2]
[311802063,1705416638010,-1612.49580747,0.00022897,2]
[311802064,1705416638021,-710.07,0.00022897,2]
[311802065,1705416638031,-318.31330327,0.00022897,2]
[311802066,1705416638041,-129265.41586388,0.00022897,2]
[311802067,1705416638051,-734.8048383,0.00022897,2]
[311802068,1705416638060,-1612.49580747,0.00022897,2]
[311802069,1705416638070,-632345.04664101,0.00022897,2]
[311802070,1705416638080,-6666.12076652,0.00022897,3]
[311802071,1705416638093,-1612.49580747,0.00022897,2]
[311802072,1705416638103,-839.42094028,0.00022898,2]
[311802073,1705416638112,-2876838.42381532,0.00022898,2]
[311802074,1705416638122,-1612.49580747,0.00022898,2]
[311802075,1705416638131,-5500.0,0.00022898,2]
[311802076,1705416638141,-250.0,0.00022898,2]
[311802077,1705416638150,-1612.49580747,0.00022898,2]
[311802078,1705416638160,-1612.49580747,0.00022899,2]
[311802079,1705416638171,-1612.49580747,0.00022899,2]
[311802080,1705416638182,-80278.39608352,0.00022899,2]
[311802081,1705416638192,-80278.39608352,0.00022899,2]
[311802082,1705416638202,-80278.39608352,0.00022899,2]
[311802083,1705416638212,-80278.39608352,0.00022899,2]
[311802084,1705416638223,-80278.39608352,0.00022899,2]
[311802085,1705416638235,-80278.39608352,0.00022899,2]
[311802086,1705416638246,-80278.39608352,0.00022899,2]
[311802087,1705416638257,-80278.39608352,0.00022899,2]
[311802088,1705416638268,-1612.49580747,0.00022899,2]
[311802089,1705416638278,-1612.49580747,0.000229,2]
[311802090,1705416638290,-516.0,0.000229,2]
[311802091,1705416638299,-187.0818271,0.000229,2]
[311802092,1705416638311,-80278.39608352,0.000229,2]
[311802093,1705416638324,-1699.20402865,0.000229,2]
[311802094,1705416638336,-1699.20402865,0.000229,2]
[311802095,1705416638348,-1699.20402865,0.000229,2]
[311802096,1705416638359,-1699.20402865,0.000229,2]
[311802097,1705416638368,-1699.20402865,0.000229,2]
[311802098,1705416638379,-1612.49580747,0.000229,2]
[311802099,1705416638390,-545.8004216,0.000229,2]
[311802100,1705416638400,-375.16704884,0.000229,2]
[311802101,1705416638410,-160.64456439,0.000229,2]
[311802102,1705416638419,-150.0,0.00022979,2]
[311802103,1705416638429,-150.0,0.00022979,2]
[311802104,1705416638440,-150.0,0.00022979,2]
[311802105,1705416638450,-150.0,0.00022979,2]
[311802106,1705416638459,-514.86735764,0.00022994,2]
[311802107,1705416638470,-24652.05087667,0.00022994,2]
[311802108,1705416638480,-1320.31079586,0.00022994,2]
[311802109,1705416638490,-986.0,0.00022996,2]
[311802110,1705416638504,-288982.95051331,0.00022996,2]
[311802111,1705416638515,-2000.0,0.00022996,2]
[311802112,1705416638525,-200.0,0.00022996,2]
[311802113,1705416638534,-2000.0,0.00022996,2]
[311802114,1705416638543,-200.0,0.00022996,2]
[311802115,1705416638553,-485.39999995,0.00022997,2]
[311802116,1705416638562,-155.0,0.00022998,2]
[311802117,1705416638572,-527.03240952,0.00022998,7]
[311802118,1705416638581,-521.17755723,0.00022998,2]
[311802119,1705416638594,-12294.16339703,0.00022998,2]
[311802120,1705416638603,-505534.28686793,0.00022999,2]
[311802121,1705416638613,-1639.57215117,0.00022999,2]
[311802122,1705416638623,-60033.223642,0.00022999,2]
[311802123,1705416638632,-3929.9558164,0.00022999,2]
[311802124,1705416638642,-4770.5678192,0.00022999,2]
[311802125,1705416638653,-648886.10550954,0.00023,2]
[311802126,1705416638663,-802817.33754984,0.00023,2]
[311802127,1705416638677,-3500.000002,0.00023,2]
[311802128,1705416638708,-1835.93483478,0.00023,2]
[311802137,1705416640818,-344.04393511,0.00023,2]
[311802138,1705416640834,-925.58767782,0.00023,2]
[311802141,1705416641171,-147213.94028383,0.00023,2]
[311802165,1705416642553,-253.87928468,0.00023,2]
[311802166,1705416642673,-6246.50973598,0.00023,2]
[311802167,1705416642733,-1411.92481084,0.00023,2]
[311802168,1705416642744,-8661.20316607,0.00023,2]
[311802169,1705416642801,-684.337992,0.00023,2]
[311802170,1705416642859,-17893.45110053,0.00023,2]
[311802171,1705416642871,-169587.15644398,0.00023,2]
[311802172,1705416642882,-133425.50781098,0.00023,2]
[311802173,1705416642903,-423436.96768992,0.00023,2]
[311802174,1705416642914,-28256.84784629,0.00023,2]
[311802187,1705416645755,-285.77500388,0.00022999,2]
[311802188,1705416645768,-628.33876584,0.00022999,2]
[311802189,1705416645831,-252.25200001,0.00022999,2]
[311802190,1705416645915,-238.98178841,0.00022999,2]
[311802191,1705416645925,-104.99321177,0.00023,2]
[311802192,1705416645942,-2107.5,0.00023,2]
[311802193,1705416645954,-472.565,0.00023,2]
[311802194,1705416646069,-19987.38049689,0.00023,2]
[311802197,1705416659547,360.75913577,0.00018398,2]
[311802198,1705416661059,3125.43380734,0.00021848,2]
[311802207,1705416679319,378.11180379,0.00021847,2]
[311802208,1705416679554,360.47479771,0.00018398,2]
[311802217,1705416743958,239.293387,0.000285,120]
[311802222,1705416797447,289.45355552,0.00022,4]
[311802225,1705416876020,161.31,0.00021876,2]
[311802226,1705416893865,215.56,0.00021973,2]
[311802227,1705416911503,328.0,0.00021788,2]
[311802232,1705416977362,152.9,0.00021828,2]
[311802233,1705417031985,172.52,0.0001991,2]
[311802240,1705417228757,303.21,0.00021704,2]
[311802241,1705417228815,155.0,0.000301,90]
[311802242,1705417323136,-3188.36893674,0.00022077,2]
[311802243,1705417323161,-524.62106045,0.00022154,2]
[311802244,1705417323182,-155.0,0.00022155,2]
[311802245,1705417323206,-501.28849694,0.00022155,2]
[311802246,1705417323227,-155.0,0.00022156,2]
[311802247,1705417323247,-215.48008362,0.00022157,2]
[311802248,1705417323269,-863.24142225,0.00022157,2]
[311802249,1705417371574,215.56,0.00021808,2]
[311802250,1705417395708,737.6,0.00021645,2]
[311802255,1705417480413,155.0,0.000301,90]
[311802256,1705417487252,163.89,0.00019708,2]
[311802257,1705417491575,163.89,0.00021972,2]
[311802277,1705417653755,205.0,0.00021698,2]
[311802278,1705417667160,282.99,0.0002164,2]
[311802279,1705417788687,191.13,0.00021593,10]
[311802293,1705417831803,-250.0,0.0002204,2]
[311802294,1705417831815,-2754.11480193,0.0002204,2]
[311802295,1705417831824,-524.62106045,0.00022041,2]
[311802296,1705417831833,-155.53567901,0.00022052,2]
[311802297,1705417831843,-200.0,0.000221,8]
[311802298,1705417831853,-300.0,0.0002215,2]
[311802299,1705417831863,-150.0,0.0002215,2]
[311802300,1705417831874,-6691.33885106,0.0002215,2]
[311802301,1705417831887,-7074.60692291,0.0002215,2]
[311802302,1705417831899,-4087.15839065,0.00022152,2]
[311802303,1705417831912,-524.77732073,0.00022152,2]
[311802304,1705417831922,-407.32270135,0.00022157,5]
[311802305,1705417831932,-181.58,0.00022183,2]
[311802306,1705417831941,-2803.67,0.000222,2]
[311802307,1705417831950,-500.0,0.000222,8]
[311802308,1705417831959,-1949.0,0.0002228,2]
[311802309,1705417831969,-314.46,0.000223,2]
[311802310,1705417831979,-700.0,0.000223,8]
[311802311,1705417831988,-2932.76,0.000223,2]
[311802312,1705417831997,-1000.0,0.000224,8]
[311802313,1705417832006,-172.98,0.00022468,2]
[311802314,1705417832016,-1300.0,0.000225,8]
[311802315,1705417832025,-6436.33635297,0.00022505,2]
[311802316,1705417832035,-200.0,0.000226,8]
[311802317,1705417832045,-282.99,0.00022619,2]
[311802318,1705417832054,-679.4537,0.00022633,2]
[311802319,1705417832064,-172.80470484,0.00022633,2]
[311802320,1705417832074,-304.09941608,0.00022636,2]
[311802321,1705417832084,-1122.12692708,0.00022643,2]
[311802322,1705417832094,-279.00928598,0.00022643,2]
[311802323,1705417832104,-1200.94620385,0.00022666,3]
[311802324,1705417832114,-1122.126927,0.00022666,2]
[311802325,1705417832123,-172.80470483,0.00022671,2]
[311802326,1705417832133,-1122.126927,0.0002269,2]
[311802327,1705417832143,-500.0,0.000227,2]
[311802328,1705417832152,-200.0,0.000227,8]
[311802329,1705417832162,-214.75609243,0.00022708,2]
[311802330,1705417832171,-172.80470483,0.00022709,2]
[311802331,1705417832181,-1122.126927,0.00022713,2]
[311802332,1705417832191,-119.7125844,0.00022723,2]
[311802333,1705417832576,-59.14831409,0.00022723,2]
[311802334,1705417832604,-178.86089849,0.00022723,2]
[311802335,1705417832614,-155.076293,0.00022731,2]
[311802336,1705417832623,-500.27444784,0.00022731,2]
[311802337,1705417832633,-241.50228797,0.00022731,2]
[311802338,1705417832643,-156.5988209,0.00022731,2]
[311802339,1705417832652,-456.18934559,0.00022731,4]
[311802340,1705417832662,-1035.20550404,0.00022731,2]
[311802341,1705417832671,-916.91106896,0.00022731,2]
[311802342,1705417832681,-5673.44365165,0.00022732,2]
[311802344,1705417833219,-1562.80039179,0.00022732,2]
[311802346,1705417833228,-1003.0,0.00022733,2]
[311802348,1705417833238,-239.98248778,0.00022733,2]
[311802351,1705417833250,-3698.8629852,0.00022733,2]
[311802353,1705417833261,-278.60878409,0.00022733,2]
[311802355,1705417833273,-311.44051922,0.00022733,2]
[311802357,1705417833287,-358.1422689,0.00022733,2]
[311802360,1705417833298,-865.14657609,0.00022733,2]
[311802362,1705417833313,-2431.44335424,0.00022733,2]
[311802364,1705417833326,-943.93187355,0.00022733,2]
[311802366,1705417833337,-481.13236969,0.00022733,2]
[311802375,1705417833412,-0.6406054,0.00022733,2]
[311802378,1705417833432,-1050.64516846,0.00022733,2]
[311802380,1705417833443,-226348.63179283,0.00022733,2]
[311802383,1705417833454,-2283.47221179,0.00022733,2]
[311802407,1705417833671,-619.75598315,0.00022733,2]
[311802409,1705417833682,-606.94100005,0.00022733,2]
[311802411,1705417833694,-590.0394705,0.00022733,2]
[311802414,1705417833706,-973.32883742,0.00022733,2]
[311802416,1705417833717,-1498.83714,0.00022733,2]
[311802420,1705417833748,-433780.94246821,0.00022733,2]
[311802423,1705417833760,-407.53,0.00022733,2]
[311802425,1705417833770,-818.99,0.00022733,2]
[311802427,1705417833781,-130953.44654919,0.00022733,2]
[311802429,1705417833792,-218839.97314287,0.00022733,2]
[311802431,1705417833801,-1122.126927,0.00022736,2]
[311802433,1705417833810,-150.0,0.00022739,2]
[311802435,1705417833821,-1597.05742077,0.00022743,2]
[311802437,1705417833830,-3300.7372141,0.00022743,2]
[311802439,1705417833839,-12037.13012418,0.00022743,2]
[311802441,1705417833847,-172.80470483,0.00022747,2]
[311802443,1705417833856,-1122.126927,0.0002276,2]
[311802445,1705417833865,-253.26,0.00022767,2]
[311802447,1705417833874,-1122.126927,0.00022783,2]
[311802449,1705417833883,-172.80470483,0.00022786,2]
[311802451,1705417833892,-1000.0,0.000228,2]
[311802453,1705417833901,-200.0,0.000228,8]
[311802455,1705417833910,-1122.126927,0.00022807,2]
[311802457,1705417833919,-200.0,0.00022815,2]
[311802459,1705417833928,-500.0,0.00022816,2]
[311802461,1705417833938,-200.0,0.00022816,2]
[311802463,1705417833947,-172.80470483,0.00022824,2]
[311802465,1705417833956,-1122.126927,0.0002283,2]
[311802467,1705417833965,-1122.126927,0.00022853,2]
[311802469,1705417833973,-172.80470483,0.00022862,2]
[311802471,1705417833983,-1122.126927,0.00022877,2]
[311802473,1705417833992,-101674.69612116,0.00022888,2]
[311802475,1705417834001,-250.0,0.00022896,2]
[311802477,1705417834010,-8027.8396084,0.00022899,2]
[311802479,1705417834019,-8027.83960835,0.00022899,2]
[311802481,1705417834028,-8027.83960835,0.00022899,2]
[311802483,1705417834038,-8027.83960835,0.00022899,2]
[311802485,1705417834047,-8027.83960835,0.00022899,2]
[311802487,1705417834057,-8027.83960835,0.00022899,2]
[311802489,1705417834066,-8027.83960835,0.00022899,2]
[311802491,1705417834076,-1274.40302149,0.000229,2]
[311802493,1705417834086,-1274.40302149,0.000229,2]
[311802495,1705417834095,-1274.40302149,0.000229,2]
[311802497,1705417834104,-1274.40302149,0.000229,2]
[311802499,1705417834113,-1274.40302149,0.000229,2]
[311802501,1705417834123,-1274.40302149,0.000229,2]
[311802503,1705417834132,-1274.40302149,0.000229,2]
[311802505,1705417834141,-1274.40302149,0.000229,2]
[311802508,1705417834151,-151.68522207,0.000229,2]
[311802510,1705417834161,-1122.126927,0.000229,2]
[311802512,1705417834170,-172.80470483,0.000229,2]
[311802514,1705417834179,-200.0,0.000229,8]
[311802515,1705417834193,-54282.74650803,0.0002297,3]
[311802518,1705417834206,-328.78748034,0.0002297,3]
[311802519,1705417834218,-190406.68671017,0.0002297,3]
[311802652,1705417837727,-22092.78544388,0.00022733,2]
[311802653,1705417837738,-15189.74674792,0.00022733,2]
[311802654,1705417837787,-2539.27183392,0.00022733,2]
[311802655,1705417837799,-4809.31574473,0.00022733,2]
[311802656,1705417837811,-1250.0571873,0.00022733,2]
[311802657,1705417837825,-1188.00499915,0.00022733,2]
[311802658,1705417837858,-307.48492604,0.00022733,2]
[311802659,1705417837869,-263.40803857,0.00022733,2]
[311802660,1705417837880,-11531.56272385,0.00022733,2]
[311802661,1705417837892,-3345.55352288,0.00022733,2]
[311802662,1705417837903,-257.60914271,0.00022733,2]
[311802663,1705417837922,-4809.3006,0.00022733,2]
[311802664,1705417838023,-2492.33509942,0.00022733,2]
[311802665,1705417838035,-1002.07127916,0.00022733,2]
[311802666,1705417838046,-6938.46057468,0.00022733,2]
[311802667,1705417838057,-1481.07984364,0.00022733,2]
[311802668,1705417838070,-13202.63496229,0.00022733,2]
[311802669,1705417838084,-13905.63435019,0.00022733,2]
[311802670,1705417838119,-1461.75386951,0.00022733,2]
[311802671,1705417838130,-1073.3643918,0.00022733,2]
[311802674,1705417838196,-125184.09845805,0.00022733,2]
[311802675,1705417838208,-17346.97063968,0.00022733,2]
[311802676,1705417838219,-22400.0,0.00022733,2]
[311802679,1705417840169,-64516.22185098,0.00022733,2]
[311802680,1705417840181,-539.15556892,0.00022733,2]
[311802681,1705417840193,-650.0,0.00022733,2]
[311802682,1705417840205,-785.15857409,0.00022733,2]
[311802683,1705417840217,-22796.53785799,0.00022733,2]
[311802684,1705417840246,-1060.00500197,0.00022733,2]
[311802685,1705417840258,-797.95569169,0.00022733,2]
[311802686,1705417840269,-595.6030002,0.00022733,2]
[311802687,1705417840281,-754.90961272,0.00022733,2]
[311802688,1705417840782,-111557.26437113,0.00022733,2]
[311802689,1705417840802,-585.18103821,0.00022733,2]
[311802690,1705417840814,-9545.70475584,0.00022733,2]
[311802691,1705417840829,-2032.5,0.00022733,2]
[311802692,1705417840857,-32464.63417202,0.00022733,2]
[311802693,1705417840926,-489.90736945,0.00022733,2]
[311802694,1705417840938,-310.36670459,0.00022733,2]
[311802695,1705417840950,-4481.0241821,0.00022733,2]
[311802696,1705417840962,-1616.14996358,0.00022733,2]
[311802697,1705417840973,-1558.7992,0.00022733,2]
[311802731,1705417842734,-1595.40968874,0.0002204,2]
[311802732,1705417842746,-14642.99682391,0.0002204,2]
[311802733,1705417842760,-12378.01400465,0.0002204,2]
[311802734,1705417842770,-3582.32390918,0.00022733,2]
[311802735,1705417842782,-468.43824676,0.00022733,2]
[311802736,1705417842813,-1690.37840299,0.00022733,2]
[311802737,1705417842828,-2326.09632938,0.00022733,2]
[311802738,1705417842839,-368863.44008052,0.00022733,2]
[311802739,1705417842849,-4990.42536022,0.00022743,2]
[311802740,1705417842858,-8027.83960835,0.00022899,2]
[311802741,1705417842867,-8027.83960835,0.00022899,2]
[311802742,1705417842877,-195612.42654012,0.0002297,3]
[311802743,1705417842886,-178.86089849,0.0002297,2]
[311802744,1705417842896,-403.8131731,0.00022978,2]